bitfinex/quotes_ETHUSD_20230116
["timestamp","ask_amount","ask_price","bid_price","bid_amount"]
[1673883262329,8.93385316,1548.1,1547.8,2.05627868]
[1673883262890,2.47402316,1548.1,1547.8,4.47206546]
[1673883263042,2.40802316,1548.1,1547.9,0.44720655]
[1673883263257,2.40802316,1548.2,1547.9,0.44720655]
[1673883263483,2.40802316,1548.2,1547.7,0.066]
[1673883263484,8.86767316,1548.1,1547.7,0.066]
[1673883263782,8.86767316,1548.1,1547.6,13.4264]
[1673883263783,15.39332316,1548.1,1547.6,13.4264]
[1673883263954,2.40802316,1548.0,1547.6,16.69918678]
[1673883264170,15.32832316,1548.0,1547.6,3.33878678]
[1673883264315,15.39432316,1548.0,1547.6,3.27278678]
[1673883264533,18.00217698,1548.0,1547.5,8.31056556]
[1673883264855,6.46086,1547.8,1547.5,0.066]
[1673883265056,6.46086,1547.8,1547.3,30.42376955]
[1673883265057,8.93488316,1547.8,1547.3,30.42376955]
[1673883265268,8.93488316,1547.8,1547.4,3.27278678]
[1673883265609,15.88064316,1547.8,1547.4,3.27278678]
[1673883265820,15.39574316,1547.8,1547.4,3.27278678]
[1673883266039,12.98772,1547.8,1547.4,3.27278678]
[1673883266363,0.066,1547.8,1547.5,3.27278678]
[1673883266577,9.35370316,1547.9,1547.6,3.27278678]
[1673883266578,0.066,1547.9,1547.6,3.27278678]
[1673883266734,2.40802316,1548.1,1547.7,3.27278678]
[1673883266944,2.40802316,1548.1,1547.8,3.60006546]
[1673883268256,21.85240316,1548.2,1547.8,3.60006546]
[1673883268631,8.93345316,1548.2,1547.8,3.60006546]
[1673883269101,15.39289316,1548.2,1547.8,3.60006546]
[1673883269315,8.86778316,1548.1,1547.8,3.60006546]
[1673883269634,15.39354316,1548.1,1547.8,3.60006546]
[1673883270149,21.85330316,1548.1,1547.8,3.60006546]
[1673883272135,21.85330316,1548.1,1547.8,0.32727868]
[1673883272308,21.85330316,1548.1,1547.7,0.066]
[1673883272309,24.03863348,1548.1,1547.6,13.1429]
[1673883272513,21.85330316,1548.1,1547.6,13.1429]
[1673883272745,2.40802316,1547.9,1547.6,0.06359948]
[1673883272936,19.38234,1547.8,1547.4,8.69055511]
[1673883273271,19.44834,1547.8,1547.4,11.96334189]
[1673883273487,19.44834,1547.8,1547.4,3.67504189]
[1673883273713,6.52678,1547.8,1547.5,3.64029097]
[1673883273883,0.066,1547.8,1547.6,3.27278678]
[1673883274100,6.52637,1547.9,1547.7,3.27278678]
[1673883274885,6.52637,1547.9,1547.6,0.06359948]
[1673883274886,19.44731,1547.9,1547.6,0.06359948]
[1673883275035,19.44731,1547.9,1547.4,1.66465563]
[1673883275252,21.85533316,1547.9,1547.5,0.16646556]
[1673883275624,21.85533316,1547.9,1547.4,0.06359948]
[1673883275775,19.38384,1547.7,1547.3,38.89716903]
[1673883275985,19.38384,1547.7,1547.3,33.69415581]
[1673883275986,19.44984,1547.7,1547.3,33.69415581]
[1673883276241,19.44984,1547.7,1547.3,3.38415581]
[1673883276405,19.44984,1547.7,1547.3,5.67214637]
[1673883276620,19.44984,1547.7,1547.3,5.73574585]
[1673883277878,19.44984,1547.7,1547.3,3.38415581]
[1673883278190,19.44984,1547.7,1547.3,3.32055633]
[1673883278662,19.44984,1547.7,1547.3,0.04776955]
[1673883278925,21.85786316,1547.7,1547.3,0.04776955]
[1673883279293,19.44984,1547.7,1547.3,0.04776955]
[1673883279664,19.38609,1547.5,1547.3,0.04776955]
[1673883279836,19.45209,1547.5,1547.3,0.04776955]
[1673883283897,2.0,1547.4,1547.3,0.04776955]
[1673883284202,23.12837316,1547.4,1547.3,0.04776955]
[1673883284355,20.78635,1547.4,1547.3,0.04776955]
[1673883284566,23.80049032,1547.4,1547.3,0.04776955]
[1673883284989,24.28559032,1547.4,1547.3,0.04776955]
[1673883285201,26.69361348,1547.4,1547.3,0.04776955]
[1673883286194,31.29940026,1547.4,1547.3,0.04776955]
[1673883286777,28.8913771,1547.4,1547.3,0.04776955]
[1673883287040,31.30743254,1547.4,1547.3,0.04776955]
[1673883287227,28.03464576,1547.4,1547.3,0.04776955]
[1673883287426,25.61859032,1547.4,1547.3,0.04776955]
[1673883288454,28.03464576,1547.4,1547.3,0.04776955]
[1673883288664,31.30743254,1547.4,1547.3,9.55e-06]
[1673883288941,28.8913771,1547.4,1547.3,9.55e-06]
[1673883289084,25.61859032,1547.4,1547.3,9.55e-06]
[1673883289297,28.03130044,1547.4,1547.3,9.55e-06]
[1673883290147,31.30408722,1547.4,1547.3,9.55e-06]
[1673883291023,28.8913771,1547.4,1547.3,9.55e-06]
[1673883291368,28.03124349,1547.4,1547.3,9.55e-06]
[1673883291497,25.61859032,1547.4,1547.3,9.55e-06]
[1673883291872,28.03124349,1547.4,1547.3,9.55e-06]
[1673883292041,31.30403027,1547.4,1547.3,9.55e-06]
[1673883292251,31.30332501,1547.4,1547.3,9.55e-06]
[1673883292504,28.8913771,1547.4,1547.3,9.55e-06]
[1673883292657,31.30331295,1547.4,1547.3,9.55e-06]
[1673883292870,28.03052617,1547.4,1547.3,9.55e-06]
[1673883294476,19.15614032,1547.4,1547.3,9.55e-06]
[1673883294696,22.46749032,1547.4,1547.3,9.55e-06]
[1673883294868,19.45335,1547.4,1547.3,9.55e-06]
[1673883296364,12.9909,1547.4,1547.3,9.55e-06]
[1673883296576,19.45335,1547.4,1547.3,9.55e-06]
[1673883298434,6.52845,1547.4,1547.3,9.55e-06]
[1673883299964,12.9909,1547.4,1547.3,9.55e-06]
[1673883300117,6.52845,1547.4,1547.3,9.55e-06]
[1673883300328,19.45335,1547.4,1547.3,9.55e-06]
[1673883301321,21.69091055,1547.4,1547.3,9.55e-06]
[1673883301538,23.01491055,1547.4,1547.3,9.55e-06]
[1673883301750,35.41913651,1547.4,1547.3,9.55e-06]
[1673883301968,40.83107236,1547.4,1547.3,9.55e-06]
[1673883302106,32.83107236,1547.4,1547.3,9.55e-06]
[1673883302322,32.18473318,1547.4,1547.3,9.55e-06]
[1673883303335,32.51673318,1547.4,1547.3,9.55e-06]
[1673883304231,21.42545,1547.4,1547.3,9.55e-06]
[1673883304470,20.94035,1547.4,1547.3,9.55e-06]
[1673883305629,24.21313678,1547.4,1547.3,9.55e-06]
[1673883305956,28.12707263,1547.4,1547.3,9.55e-06]
[1673883306122,31.61217263,1547.4,1547.3,9.55e-06]
[1673883306484,38.06731289,1547.4,1547.3,9.55e-06]
[1673883308328,35.65537704,1547.4,1547.3,9.55e-06]
[1673883308673,35.65537704,1547.4,1547.2,8.21e-06]
[1673883308674,2.0,1547.3,1547.2,8.21e-06]
[1673883309051,31.56522777,1547.3,1547.2,8.21e-06]
[1673883309215,31.63122777,1547.3,1547.2,8.21e-06]
[1673883309436,36.76991957,1547.3,1547.2,8.21e-06]
[1673883310045,44.76991957,1547.3,1547.2,8.21e-06]
[1673883310217,36.76991957,1547.3,1547.2,8.21e-06]
[1673883310431,42.35908858,1547.3,1547.2,8.21e-06]
[1673883310660,44.77081555,1547.3,1547.2,8.21e-06]
[1673883310876,42.35908858,1547.3,1547.2,8.21e-06]
[1673883311103,44.77081726,1547.3,1547.2,8.21e-06]
[1673883311283,42.35908858,1547.3,1547.2,8.21e-06]
[1673883311800,34.35908858,1547.3,1547.2,8.21e-06]
[1673883312162,42.35908858,1547.3,1547.2,8.21e-06]
[1673883312527,47.38999284,1547.3,1547.2,8.21e-06]
[1673883313308,6.46392,1547.1,1546.7,0.0513007]
[1673883313520,1.502,1546.8,1546.7,0.0513007]
[1673883313843,27.3618,1546.8,1546.7,0.0513007]
[1673883314079,27.9131,1546.8,1546.7,0.0513007]
[1673883314419,31.18588678,1546.8,1546.7,0.0513007]
[1673883314629,37.74586281,1546.8,1546.7,0.0513007]
[1673883315100,34.47307603,1546.8,1546.7,0.0513007]
[1673883315268,32.97107603,1546.8,1546.7,0.0513007]
[1673883315630,29.97107603,1546.8,1546.7,0.0513007]
[1673883315853,29.48577603,1546.8,1546.7,0.0513007]
[1673883317100,32.48577603,1546.8,1546.7,0.0513007]
[1673883317800,37.26056281,1546.8,1546.7,0.0313007]
[1673883318684,29.48577603,1546.8,1546.7,0.0313007]
[1673883318875,32.48577603,1546.8,1546.7,0.0313007]
[1673883319103,35.75856281,1546.8,1546.7,0.0313007]
[1673883319267,35.75856281,1546.8,1546.7,7e-07]
[1673883319480,2.0,1546.7,1546.6,0.04443934]
[1673883319686,28.32086628,1546.7,1546.6,0.04443934]
[1673883319949,28.38686628,1546.7,1546.6,0.04443934]
[1673883320180,31.65965306,1546.7,1546.6,0.04443934]
[1673883320845,31.65965306,1546.7,1546.6,9.34e-06]
[1673883321054,31.65965306,1546.7,1546.5,0.04573114]
[1673883321055,21.39737,1546.6,1546.5,0.04573114]
[1673883321262,27.62933531,1546.6,1546.5,1.14e-06]
[1673883321962,30.90212209,1546.6,1546.5,1.14e-06]
[1673883326161,22.46337,1546.6,1546.5,1.14e-06]
[1673883327225,19.46337,1546.6,1546.5,1.14e-06]
[1673883333305,20.02648091,1546.6,1546.5,1.14e-06]
[1673883345475,19.40127627,1546.5,1546.4,0.05404583]
[1673883345630,19.46727627,1546.5,1546.4,0.05404583]
[1673883345834,19.46727627,1546.5,1546.4,0.91104583]
[1673883346226,19.46727627,1546.5,1546.4,1.00215041]
[1673883346362,1.93415411,1546.8,1546.5,0.96294803]
[1673883346577,0.066,1546.9,1546.6,9.73857678]
[1673883346946,2.89664826,1547.2,1546.7,11.34239572]
[1673883346947,0.066,1547.2,1546.7,11.34239572]
[1673883347150,2.64380531,1547.4,1546.8,10.59908957]
[1673883347306,0.16393176,1547.4,1546.9,1.497]
[1673883347515,5.31052181,1547.5,1546.9,2.14333918]
[1673883347729,2.41387355,1547.4,1547.0,0.4852]
[1673883348010,2.41387355,1547.4,1547.0,3.4852]
[1673883348011,1.23287355,1547.4,1547.0,3.4852]
[1673883348144,1.23287355,1547.4,1547.1,0.34852]
[1673883348632,1.23287355,1547.4,1547.2,0.4851]
[1673883348933,7.69533355,1547.4,1547.2,0.4851]
[1673883349090,7.76133355,1547.4,1547.2,0.4851]
[1673883349296,7.76133355,1547.4,1547.1,0.83372]
[1673883349678,1.29887355,1547.4,1547.2,0.083372]
[1673883349827,6.69496483,1547.6,1547.2,0.083372]
[1673883350291,0.23324483,1547.6,1547.2,0.083372]
[1673883350454,0.16724483,1547.6,1547.1,2.34852]
[1673883350782,0.16724483,1547.6,1547.2,3.27278678]
[1673883350998,0.16724483,1547.6,1547.3,1.502]
[1673883351211,0.16724483,1547.6,1547.3,4.77478678]
[1673883351395,0.16724483,1547.6,1547.5,1.494]
[1673883351612,0.16724483,1547.6,1547.5,2.62087868]
[1673883351833,0.16724483,1547.6,1547.5,5.62087868]
[1673883352047,0.16724483,1547.6,1547.5,5.68447816]
[1673883352275,0.16724483,1547.6,1547.5,7.68447816]
[1673883352464,0.16724483,1547.6,1547.5,13.05958667]
[1673883352695,0.16724483,1547.6,1547.5,9.83281734]
[1673883353305,0.16393176,1548.0,1547.6,2.98328173]
[1673883353538,0.16393176,1548.0,1547.9,1.502]
[1673883353764,0.183058,1548.2,1547.9,11.23514678]
[1673883353954,0.183058,1548.2,1548.0,1.494]
[1673883354912,0.183058,1548.2,1548.0,7.95373]
[1673883355117,0.183058,1548.2,1548.1,6.06815978]
[1673883355470,0.183058,1548.2,1548.1,10.62875926]
[1673883356479,0.183058,1548.2,1548.1,7.13175926]
[1673883356685,0.183058,1548.2,1548.1,8.63375926]
[1673883356941,0.18501714,1548.4,1548.2,1.04637593]
[1673883357265,0.19276103,1548.6,1548.2,9.31916271]
[1673883357480,0.19276103,1548.6,1548.2,6.10997541]
[1673883357788,0.19276103,1548.6,1548.3,3.27278678]
[1673883358007,0.19276103,1548.6,1548.4,3.27278678]
[1673883358310,0.19276103,1548.6,1548.5,5.60006546]
[1673883358525,0.19276103,1548.6,1548.5,8.66366494]
[1673883358714,0.19276103,1548.6,1548.5,6.66366494]
[1673883358926,0.19276103,1548.6,1548.5,0.06359948]
[1673883359139,0.19276103,1548.6,1548.2,3.86337593]
[1673883359564,6.65025103,1548.6,1548.2,3.86337593]
[1673883359780,13.17374103,1548.6,1548.2,3.0]
[1673883359961,13.17374103,1548.6,1548.1,0.06359948]
[1673883360179,15.79878021,1548.6,1547.9,0.06359948]
[1673883360385,7.20099103,1548.6,1548.2,3.27278678]
[1673883360723,0.25876103,1548.6,1548.3,3.27278678]
[1673883361055,0.25876103,1548.6,1548.4,3.60006546]
[1673883361056,0.19276103,1548.6,1548.4,3.60006546]
[1673883361223,0.19276103,1548.6,1548.4,0.32727868]
[1673883361445,0.19276103,1548.6,1548.5,9.73064678]
[1673883361786,0.19276103,1548.6,1548.5,3.33638626]
[1673883362011,0.19276103,1548.6,1548.5,3.27278678]
[1673883362600,0.19276103,1548.6,1548.4,0.06359948]
[1673883362795,0.19276103,1548.6,1548.4,3.27278678]
[1673883363017,0.19276103,1548.6,1548.4,6.27278678]
[1673883363335,0.19276103,1548.6,1548.5,3.27278678]
[1673883363564,0.19276103,1548.6,1548.5,9.73064678]
[1673883363900,0.19276103,1548.6,1548.5,11.28824626]
[1673883364109,0.18128294,1548.7,1548.6,1.694]
[1673883364427,0.18128294,1548.7,1548.6,9.96678678]
[1673883364639,0.18128294,1548.7,1548.6,25.80506398]
[1673883364808,0.18843822,1549.0,1548.6,25.80506398]
[1673883364809,0.18843822,1549.0,1548.6,29.66654317]
[1673883365001,0.18843822,1549.0,1548.9,3.27278678]
[1673883365212,0.18843822,1549.0,1548.9,22.18616678]
[1673883365423,0.18843822,1549.0,1548.9,22.89610544]
[1673883365785,0.19748926,1549.4,1548.9,22.89610544]
[1673883365786,0.19748926,1549.4,1548.9,25.35606559]
[1673883366001,0.19748926,1549.4,1549.2,3.27278678]
[1673883366220,0.19748926,1549.4,1549.3,7.76678678]
[1673883366367,0.19748926,1549.4,1549.3,7.83038626]
[1673883366572,0.19748926,1549.4,1549.3,4.83038626]
[1673883366862,0.19748926,1549.4,1549.3,4.20642541]
[1673883367005,0.19748926,1549.4,1549.3,3.27278678]
[1673883367459,0.19748926,1549.4,1549.2,1.56359948]
[1673883367669,0.19748926,1549.4,1549.1,0.06359948]
[1673883368001,0.19748926,1549.4,1548.9,2.0]
[1673883368209,0.19748926,1549.4,1549.0,4.77278678]
[1673883368364,0.19748926,1549.4,1549.1,3.27278678]
[1673883368578,0.19748926,1549.4,1549.0,4.16386494]
[1673883368845,0.19748926,1549.4,1549.2,2.0]
[1673883368995,0.19748926,1549.4,1549.2,3.502]
[1673883369205,0.19748926,1549.4,1549.3,4.77478678]
[1673883369435,0.19748926,1549.4,1549.2,0.06359948]
[1673883369651,0.19748926,1549.4,1549.2,3.27278678]
[1673883369873,0.19748926,1549.4,1549.2,5.27278678]
[1673883370075,0.19748926,1549.4,1549.3,3.27278678]
[1673883370334,0.78499103,1549.6,1549.5,7.00848925]
[1673883370335,0.30985621,1549.6,1549.5,7.00848925]
[1673883370541,0.30985621,1549.6,1549.5,35.70794551]
[1673883370691,0.30985621,1549.6,1549.5,9.53587551]
[1673883370903,0.30985621,1549.6,1549.5,13.36757293]
[1673883371484,0.30985621,1549.6,1549.5,19.82126293]
[1673883371802,0.30985621,1549.6,1549.5,33.08595293]
[1673883372166,0.002,1549.9,1549.5,33.08395293]
[1673883372433,0.67525197,1550.2,1549.8,6.27678678]
[1673883372434,0.19105197,1550.2,1549.8,6.27678678]
[1673883372581,0.19105197,1550.2,1549.9,5.40246546]
[1673883372791,0.19105197,1550.2,1550.1,2.0]
[1673883373006,6.44958,1550.5,1550.1,5.27278678]
[1673883373007,0.066,1550.5,1550.1,5.27278678]
[1673883373271,0.0074274,1550.6,1550.4,3.27278678]
[1673883373480,0.0074274,1550.6,1550.5,16.07978678]
[1673883373637,0.0074274,1550.6,1550.5,24.57671398]
[1673883373847,0.0074274,1550.6,1550.5,8.68165398]
[1673883374053,0.0074274,1550.6,1550.5,0.06359948]
[1673883374301,0.64633918,1551.0,1550.6,3.27278678]
[1673883374476,6.44765,1551.0,1550.8,1.49611572]
[1673883374685,0.062,1551.0,1550.8,1.49611572]
[1673883374934,0.5498,1551.5,1550.9,2.0]
[1673883375158,0.03132,1551.4,1551.0,4.94385096]
[1673883375483,0.066,1551.7,1551.3,3.27278678]
[1673883375690,0.0734274,1551.9,1551.6,3.27278678]
[1673883375856,0.0734274,1551.9,1551.7,3.27278678]
[1673883375857,0.0094274,1551.9,1551.7,3.27278678]
[1673883376077,1.0974303,1552.3,1551.7,9.71715678]
[1673883376280,0.0083694,1552.1,1551.8,6.89886546]
[1673883376486,0.0083694,1552.1,1552.0,16.944]
[1673883376694,0.066,1552.8,1552.0,23.90989912]
[1673883376695,0.045,1552.8,1552.0,23.90989912]
[1673883376905,1.0974303,1553.8,1552.1,5.3802164]
[1673883377173,1.0974303,1553.8,1552.7,3.36729]
[1673883377174,0.075,1553.3,1552.7,3.36729]
[1673883377328,27.78075661,1553.5,1552.6,0.066]
[1673883377541,27.78075661,1553.5,1552.5,6.877]
[1673883377542,8.0,1553.4,1552.5,6.877]
[1673883377753,8.0,1553.4,1552.5,71.40051456]
[1673883377754,0.066,1553.4,1552.5,71.40051456]
[1673883377968,0.066,1553.4,1552.5,2.066]
[1673883377969,2.303,1553.2,1552.5,2.066]
[1673883378157,2.993,1553.0,1552.5,2.0]
[1673883378366,2.282,1553.4,1552.5,2.0]
[1673883378629,0.5353,1553.1,1552.5,2.0]
[1673883378948,1.502,1552.6,1551.8,1.9282]
[1673883379156,1.502,1552.6,1551.5,33.20766414]
[1673883379157,3.0,1552.6,1551.5,33.20766414]
[1673883379310,1.494,1552.3,1551.5,32.41166414]
[1673883379516,1.494,1552.3,1551.5,32.46166414]
[1673883379838,0.64633918,1552.3,1551.5,26.81763661]
[1673883380060,2.395,1552.6,1551.5,26.81763661]
[1673883380290,2.395,1552.6,1551.5,25.98363661]
[1673883380291,1.502,1552.3,1551.5,25.98363661]
[1673883380517,8.0,1552.4,1551.5,24.49563661]
[1673883380755,1.49,1551.9,1551.5,24.49563661]
[1673883380947,1.502,1551.9,1551.5,0.066]
[1673883381261,1.6522,1551.9,1551.2,1.5]
[1673883381470,1.6522,1551.9,1551.6,0.03118]
[1673883381775,3.877,1552.2,1551.6,0.03118]
[1673883381776,0.126,1552.2,1551.6,0.03118]
[1673883381999,3.876,1552.5,1551.7,1.494]
[1673883382145,1.496,1552.5,1551.8,0.03118]
[1673883382517,0.06,1552.7,1552.0,1.5]
[1673883382685,1.568,1552.8,1552.0,1.5]
[1673883382686,1.502,1552.8,1552.0,1.5]
[1673883382899,2.0,1552.6,1552.0,1.5]
[1673883383112,0.1502,1552.7,1552.0,1.5]
[1673883383320,1.489,1552.9,1552.1,1.494]
[1673883383559,2.35,1553.0,1552.2,1.497]
[1673883383560,1.568,1553.0,1552.2,1.497]
[1673883383724,2.0,1553.0,1552.3,1.491]
[1673883384164,1.564,1553.1,1552.2,0.5496]
[1673883384395,0.21879561,1552.7,1551.9,11.2530894]
[1673883384610,1.502,1552.6,1552.0,3.0]
[1673883384824,1.72079561,1552.7,1552.0,0.03117]
[1673883385148,6.44242,1552.3,1551.7,0.066]
[1673883385318,1.497,1552.2,1551.5,47.996]
[1673883385528,1.497,1552.2,1551.7,0.03118]
[1673883385724,1.6467,1552.2,1551.7,0.03118]
[1673883385929,0.126,1552.4,1551.7,0.03118]
[1673883385930,1.502,1552.3,1551.7,0.03118]
[1673883386391,1.568,1552.5,1551.7,0.03118]
[1673883386392,0.60825302,1552.5,1551.8,0.4837]
[1673883386670,1.502,1552.3,1551.8,0.4837]
[1673883386877,8.0,1552.3,1551.9,0.03117]
[1673883387133,1.497,1552.0,1551.9,0.03117]
[1673883387468,12.88853,1551.8,1551.3,0.066]
[1673883387615,2.0,1551.7,1551.4,0.03118]
[1673883387832,1.502,1551.5,1551.4,0.03118]
[1673883388039,2.0,1551.4,1550.9,47.996]
[1673883388369,2.0,1551.4,1551.0,0.03119]
[1673883388370,1.496,1551.3,1551.0,0.03119]
[1673883388717,2.296182,1551.3,1551.0,0.03119]
[1673883388909,7.94103,1551.1,1551.0,0.03119]
[1673883389100,9.50903,1551.1,1551.0,0.03119]
[1673883389309,9.50903,1551.1,1550.4,0.4841]
[1673883389505,9.50903,1551.1,1550.2,0.066]
[1673883389506,6.44845,1550.8,1550.2,0.066]
[1673883389715,1.489,1550.4,1550.3,0.03121]
[1673883389963,4.827845,1550.7,1550.3,0.03121]
[1673883389964,2.212845,1550.7,1550.3,0.03121]
[1673883390295,6.54626,1550.8,1550.3,0.4842]
[1673883390296,1.563,1550.8,1550.3,0.4842]
[1673883390453,1.489,1550.8,1550.2,0.03384656]
[1673883390661,2.0,1550.6,1550.2,0.03384656]
[1673883390976,6.44961,1550.5,1550.2,0.03384656]
[1673883391185,1.502,1550.4,1550.2,0.03384656]
[1673883391455,1.502,1550.5,1550.2,0.03384656]
[1673883391625,0.002,1550.5,1550.2,0.03384656]
[1673883391834,0.99457826,1550.6,1550.2,0.03384656]
[1673883392616,3.496,1550.5,1550.2,0.03384656]
[1673883392929,7.34989883,1550.6,1550.2,0.03384656]
[1673883392930,1.568,1550.6,1550.2,0.03384656]
[1673883393084,1.6008,1550.7,1550.2,3.30663334]
[1673883393297,1.6008,1550.7,1550.2,3.95297252]
[1673883393298,1.497,1550.7,1550.2,3.95297252]
[1673883393568,1.496,1550.6,1550.2,3.30663334]
[1673883393719,7.94517,1550.6,1550.2,3.64389667]
[1673883393925,0.066,1550.6,1550.3,3.27278678]
[1673883394139,1.566,1551.0,1550.4,3.27278678]
[1673883394388,0.066,1551.1,1550.6,3.27278678]
[1673883394553,1.568,1551.4,1550.8,3.27278678]
[1673883394764,1.502,1551.3,1550.8,3.60006546]
[1673883394969,6.44718,1551.1,1550.7,0.71233918]
[1673883395221,7.94961,1551.0,1550.5,0.066]
[1673883395451,7.94961,1551.0,1550.3,0.066]
[1673883395452,1.494,1550.9,1550.3,0.066]
[1673883395675,1.494,1550.9,1550.2,0.09984656]
[1673883395676,1.494,1550.5,1550.2,0.09984656]
[1673883395813,1.494,1550.5,1550.2,0.04384656]
[1673883396023,1.494,1550.5,1550.2,0.03384656]
[1673883396024,7.9436,1550.5,1550.2,0.03384656]
[1673883396289,8.0096,1550.5,1550.2,0.03384656]
[1673883396448,1.502,1550.3,1550.2,0.03384656]
[1673883396897,8.45031,1550.4,1550.2,0.03384656]
[1673883396898,8.51631,1550.4,1550.2,0.03384656]
[1673883397108,1.489,1550.3,1550.2,0.03384656]
[1673883397864,9.93936,1550.3,1550.2,0.03384656]
[1673883398195,10.00536,1550.3,1550.2,0.03384656]
[1673883398551,3.555,1550.3,1550.2,0.03384656]
[1673883398761,1.57497269,1550.3,1550.2,0.03384656]
[1673883399090,1.502,1550.3,1550.2,0.03384656]
[1673883399912,7.95236,1550.3,1550.2,0.03384656]
[1673883400264,8.01836,1550.3,1550.2,0.03384656]
[1673883400453,1.568,1550.3,1550.2,0.03384656]
[1673883400668,1.56,1550.5,1550.0,0.4842]
[1673883400894,7.94364,1550.5,1549.9,0.4843]
[1673883401073,1.502,1550.4,1549.9,0.4843]
[1673883401275,1.502,1550.4,1549.8,0.4843]
[1673883401486,1.502,1550.2,1549.8,1.35335083]
[1673883401720,1.497,1550.1,1549.7,0.4843]
[1673883401944,1.568,1550.3,1549.8,3.27278678]
[1673883402153,1.502,1550.4,1549.8,9.72521678]
[1673883402372,1.502,1550.4,1549.9,3.75708678]
[1673883402539,0.066,1550.6,1550.0,3.27278678]
[1673883402540,1.49,1550.5,1550.0,3.27278678]
[1673883402892,1.49,1550.5,1550.1,3.60006546]
[1673883403083,7.93974,1550.5,1550.1,0.32727868]
[1673883403277,8.00574,1550.5,1549.9,1.13063918]
[1673883403491,3.494,1550.4,1549.9,0.4843]
[1673883403917,3.494,1550.4,1549.8,0.066]
[1673883403918,1.502,1550.1,1549.8,0.066]
[1673883404128,18.61694,1550.4,1550.1,2.76807441]
[1673883404370,1.494,1550.2,1550.1,2.76807441]
[1673883404592,3.494,1550.2,1550.1,2.76807441]
[1673883404744,1.494,1550.2,1550.1,2.76807441]
[1673883405374,0.066,1550.3,1550.1,2.76807441]
[1673883405375,1.502,1550.3,1550.1,2.76807441]
[1673883405854,1.494,1550.4,1550.1,2.76807441]
[1673883406177,7.95153,1550.5,1550.1,2.76807441]
[1673883406336,1.497,1550.4,1549.9,0.066]
[1673883406551,1.502,1550.2,1549.7,30.376]
[1673883406763,11.90179078,1550.3,1549.7,30.8603]
[1673883406974,14.40382,1550.2,1549.7,30.376]
[1673883407253,12.96782,1550.2,1549.7,30.376]
[1673883407369,0.03781,1550.1,1549.7,0.066]
[1673883407580,12.90338,1550.0,1549.6,0.4844]
[1673883407790,1.495,1549.8,1549.6,0.4844]
[1673883408049,1.49,1549.9,1549.6,0.4844]
[1673883408269,1.489,1550.0,1549.6,1.19791792]
[1673883408440,1.489,1550.0,1549.6,0.4844]
[1673883408794,1.489,1550.0,1549.5,0.19748925]
[1673883408795,1.497,1549.8,1549.5,0.19748925]
[1673883408949,1.49,1549.7,1549.5,0.19748925]
[1673883409373,3.49,1549.7,1549.5,0.19748925]
[1673883409730,1.49,1549.7,1549.5,0.19748925]
[1673883410430,3.27857056,1549.8,1549.5,0.19748925]
[1673883410622,1.494,1549.7,1549.5,0.19748925]
[1673883411105,1.497,1549.6,1549.5,0.19748925]
[1673883411330,7.95027,1549.6,1549.5,0.19748925]
[1673883411532,10.01627,1549.6,1549.5,0.19748925]
[1673883411853,1.563,1549.6,1549.5,0.19748925]
[1673883411994,1.502,1549.7,1549.6,2.77221518]
[1673883412207,4.76678678,1549.7,1549.6,2.77221518]
[1673883412576,7.94694,1549.7,1549.6,2.77221518]
[1673883412728,8.01294,1549.7,1549.3,0.066]
[1673883412938,1.502,1549.5,1549.1,0.04000891]
[1673883413207,1.502,1549.5,1549.1,0.7402248]
[1673883413776,1.502,1549.5,1549.2,3.75728678]
[1673883414028,7.95488,1549.7,1549.2,0.4845]
[1673883414215,14.47376,1549.7,1549.2,0.4845]
[1673883414432,3.495,1549.5,1549.2,0.4845]
[1673883415058,1.495,1549.5,1549.2,0.4845]
[1673883415270,0.066,1549.6,1549.3,3.27278678]
[1673883415466,14.47242,1549.9,1549.4,0.32727868]
[1673883415688,8.45247,1549.8,1549.4,0.81167868]
[1673883415884,8.51847,1549.8,1549.4,0.81167868]
[1673883416098,10.01547,1549.8,1549.4,0.81167868]
[1673883416352,2.0,1549.6,1549.3,0.4845]
[1673883416733,19.67349678,1549.6,1549.1,0.04000891]
[1673883416992,1.502,1549.4,1549.1,0.04000891]
[1673883417420,3.502,1549.4,1549.1,0.04000891]
[1673883418046,14.46993,1549.5,1549.1,0.28428035]
[1673883418047,8.01595,1549.5,1549.1,0.28428035]
[1673883418374,8.73403,1549.9,1549.4,3.27278678]
[1673883418375,0.06,1549.9,1549.4,3.27278678]
[1673883418671,2.14333918,1550.4,1549.7,3.27278678]
[1673883418672,0.126,1550.4,1549.7,3.27278678]
[1673883418995,0.066,1550.6,1549.9,16.17674678]
[1673883419143,12.96317,1550.8,1550.0,6.27278678]
[1673883419353,1.502,1550.7,1550.1,9.72376678]
[1673883419558,1.502,1550.7,1550.1,9.74576678]
[1673883419847,1.502,1550.7,1550.2,0.4842]
[1673883419983,1.502,1550.7,1550.2,1.50719668]
[1673883420189,1.502,1550.7,1550.2,4.77998346]
[1673883420453,1.568,1550.8,1550.3,3.27278678]
[1673883420769,7.95029,1550.8,1550.2,11.62631586]
[1673883420983,8.01629,1550.8,1550.3,3.0]
[1673883421140,8.01629,1550.8,1550.3,3.81755359]
[1673883421351,16.46457,1550.8,1550.4,0.4841]
[1673883421563,1.502,1550.7,1550.3,0.4842]
[1673883421787,9.9507,1550.7,1550.3,0.4842]
[1673883422022,9.863198,1550.7,1550.0,7.11973918]
[1673883422239,14.4654,1550.7,1550.1,3.27278678]
[1673883422449,14.4654,1550.7,1550.1,3.75698678]
[1673883422664,8.0097,1550.7,1550.1,3.75698678]
[1673883422879,8.0097,1550.7,1550.1,10.20808678]
[1673883423028,1.561,1550.7,1550.1,16.68127678]
[1673883423399,6.51428,1550.8,1550.2,8.11864768]
[1673883423568,6.51428,1550.8,1550.2,1.69012768]
[1673883423785,6.51428,1550.8,1550.1,6.9353]
[1673883423786,12.96285,1550.8,1550.3,0.4842]
[1673883424027,12.96285,1550.8,1550.1,0.022]
[1673883424028,4.76178678,1550.7,1550.1,0.022]
[1673883424250,1.495,1550.4,1550.0,1.42595114]
[1673883424410,3.495,1550.3,1550.0,1.42595114]
[1673883424764,8.45045,1550.3,1550.0,1.42595114]
[1673883424984,10.013089,1550.3,1550.0,1.14905115]